bitfinex/quotes_SOLUSD_20250415
["timestamp","ask_amount","ask_price","bid_price","bid_amount"]
[1744714499869,18.3662,132.52,132.49,26.0]
[1744714500075,18.3662,132.52,132.46,35.83285807]
[1744714500076,9.83285807,132.51,132.46,35.83285807]
[1744714500377,9.83285807,132.51,132.47,9.83285807]
[1744714500679,18.3662,132.52,132.48,9.83285807]
[1744714501886,18.366,132.52,132.49,9.83285807]
[1744714502075,18.366,132.52,132.46,43.38205807]
[1744714502076,9.83285807,132.51,132.46,43.38205807]
[1744714502277,28.19885807,132.52,132.47,9.83285807]
[1744714502670,18.366,132.52,132.48,9.83285807]
[1744714504178,9.83285807,132.53,132.48,9.83285807]
[1744714504179,0.03,132.58,132.51,35.83285807]
[1744714504377,91.43285807,132.57,132.52,9.83285807]
[1744714504575,9.83285807,132.56,132.51,35.83285807]
[1744714505087,9.83285807,132.56,132.51,43.37935807]
[1744714505274,9.83285807,132.54,132.51,26.0]
[1744714505584,10.82,132.53,132.51,35.83285807]
[1744714505785,10.82,132.53,132.52,9.83285807]
[1744714506990,10.82,132.53,132.52,17.37885807]
[1744714507884,10.82,132.53,132.51,26.0]
[1744714507885,10.82,132.53,132.51,33.5463]
[1744714508088,10.82,132.53,132.52,26.0]
[1744714508269,20.65285807,132.53,132.47,9.83285807]
[1744714508475,9.83285807,132.52,132.47,9.83285807]
[1744714508785,9.83285807,132.52,132.5,26.0]
[1744714508985,17.37895807,132.52,132.5,26.0]
[1744714509194,9.83285807,132.51,132.46,7.5491]
[1744714509492,17.37895807,132.52,132.47,35.83285807]
[1744714510193,109.79855807,132.53,132.48,9.83285807]
[1744714510396,109.79855807,132.53,132.49,9.83285807]
[1744714510579,92.42,132.53,132.49,9.83285807]
[1744714510778,92.42,132.53,132.5,35.83285807]
[1744714511169,10.82,132.53,132.51,9.83285807]
[1744714512569,10.82,132.53,132.52,9.83285807]
[1744714512771,10.82,132.53,132.5,33.547]
[1744714513000,20.65285807,132.53,132.5,26.0]
[1744714513297,10.82,132.53,132.5,26.0]
[1744714513593,18.3655,132.53,132.5,26.0]
[1744714513795,28.19835807,132.53,132.5,26.0]
[1744714514090,28.19835807,132.53,132.48,17.38085807]
[1744714514091,28.19835807,132.53,132.48,9.83285807]
[1744714514265,9.83285807,132.52,132.48,26.0]
[1744714514670,9.83285807,132.52,132.47,43.38145807]
[1744714515576,17.37905807,132.52,132.47,43.38145807]
[1744714516193,18.3657,132.53,132.48,9.83285807]
[1744714516396,28.19855807,132.53,132.48,9.83285807]
[1744714516591,9.83285807,132.52,132.47,43.38145807]
[1744714517506,17.37935807,132.52,132.47,43.38145807]
[1744714518799,9.83285807,132.5,132.47,26.0]
[1744714519097,9.83285807,132.48,132.43,9.89585807]
[1744714519403,10.82,132.47,132.44,9.83285807]
[1744714519697,10.82,132.47,132.45,9.83285807]
[1744714520106,10.82,132.47,132.46,9.83285807]
[1744714520916,81.6,132.5,132.46,35.83285807]
[1744714521081,10.82,132.51,132.48,9.83285807]
[1744714521993,10.82,132.51,132.48,17.38095807]
[1744714523109,10.82,132.51,132.49,9.83285807]
[1744714526507,18.3666,132.51,132.48,9.83285807]
[1744714526709,9.83285807,132.5,132.46,26.0]
[1744714526908,17.38105807,132.49,132.46,26.0]
[1744714527299,81.6,132.48,132.43,0.063]
[1744714527615,81.6,132.47,132.43,9.89585807]
[1744714527802,10.82,132.46,132.43,35.89585807]
[1744714528704,20.65285807,132.46,132.43,0.063]
[1744714528900,7.55,132.45,132.43,0.063]
[1744714530019,17.38285807,132.45,132.43,0.063]
[1744714532312,7.55,132.45,132.43,0.063]
[1744714534316,106.1704,132.46,132.43,0.063]
[1744714534495,99.9696,132.46,132.43,0.063]
[1744714536217,109.80245807,132.46,132.43,0.063]
[1744714536695,126.24964886,132.42,132.4,0.063]
[1744714536901,46.22914886,132.38,132.37,0.063]
[1744714537101,18.64964886,132.37,132.35,0.063]
[1744714537297,20.65285807,132.36,132.35,0.063]
[1744714537501,28.20795807,132.36,132.35,0.063]
[1744714538103,122.89964886,132.35,132.33,0.063]
[1744714538297,18.64964886,132.33,132.32,0.063]
[1744714538504,51.13250693,132.33,132.32,0.063]
[1744714538917,57.27630693,132.33,132.32,0.063]
[1744714539422,57.27630693,132.33,132.29,0.063]
[1744714539619,17.39025807,132.32,132.29,0.063]
[1744714541221,58.93375807,132.32,132.29,0.063]
[1744714541525,9.83285807,132.3,132.29,0.063]
[1744714542128,17.39135807,132.3,132.29,0.063]
[1744714546916,17.39135807,132.3,132.29,0.0001]
[1744714548612,7.5585,132.3,132.29,0.0001]
[1744714548832,18.3782,132.31,132.29,0.0001]
[1744714550521,28.21105807,132.31,132.29,0.0001]
[1744714550702,9.83285807,132.3,132.29,0.0001]
[1744714552629,17.39135807,132.3,132.29,0.0001]
[1744714555040,98.99135807,132.3,132.29,0.0001]
[1744714556643,81.6,132.3,132.29,0.0001]
[1744714560914,18.3781,132.31,132.29,0.0001]
[1744714561115,10.82,132.3,132.29,0.0001]
[1744714561310,81.6,132.33,132.29,9.83295807]
[1744714561517,243.0766,132.34,132.32,9.83285807]
[1744714561518,246.34,132.34,132.32,9.83285807]
[1744714561726,10.82,132.34,132.33,9.83285807]
[1744714562840,10.82,132.34,132.33,54.48250693]
[1744714563018,0.03,132.36,132.35,26.0]
[1744714563219,0.03,132.36,132.35,35.83285807]
[1744714563420,93.11003043,132.49,132.36,18.64964886]
[1744714563635,9.83285807,132.42,132.38,26.0]
[1744714564850,9.83285807,132.39,132.34,7.556]
[1744714565051,10.82,132.38,132.35,26.0]
[1744714565652,10.82,132.38,132.35,43.38835807]
[1744714566748,10.82,132.38,132.37,9.83285807]
[1744714567121,9.83285807,132.41,132.36,9.83285807]
[1744714567326,9.83285807,132.4,132.35,43.38835807]
[1744714567842,9.83285807,132.41,132.36,9.83285807]
[1744714568428,10.82,132.42,132.38,9.83285807]
[1744714568947,10.82,132.42,132.39,9.83285807]
[1744714569524,10.82,132.42,132.41,9.83285807]
[1744714569949,10.82,132.42,132.4,9.83285807]
[1744714571835,20.65285807,132.42,132.38,33.5537]
[1744714572541,10.82,132.42,132.38,43.38655807]
[1744714573146,10.82,132.42,132.39,9.83285807]
[1744714573960,28.20465807,132.42,132.38,43.38655807]
[1744714574254,91.43285807,132.41,132.36,35.83285807]
[1744714574548,91.43285807,132.41,132.37,9.83285807]
[1744714575454,98.98515807,132.41,132.37,9.83285807]
[1744714575653,89.1523,132.41,132.37,9.83285807]
[1744714576145,98.98515807,132.41,132.36,43.38745807]
[1744714576627,9.83285807,132.39,132.34,35.83285807]
[1744714576949,9.83285807,132.38,132.34,26.0]
[1744714577135,10.8,132.37,132.34,35.83285807]
[1744714577652,10.8,132.37,132.34,43.38885807]
[1744714578863,10.8,132.37,132.34,35.83285807]
[1744714579363,10.8,132.37,132.34,26.0]
[1744714579533,18.3545,132.37,132.34,26.0]
[1744714583361,18.3545,132.37,132.33,9.83285807]
[1744714583567,28.18735807,132.37,132.32,33.5572]
[1744714583741,91.43285807,132.36,132.32,26.0]
[1744714584064,81.6,132.36,132.32,26.0]
[1744714584262,10.8,132.37,132.35,35.83285807]
[1744714584442,10.8,132.37,132.36,9.83285807]
[1744714585337,10.8,132.37,132.36,17.38795807]
[1744714590259,10.8,132.4,132.36,7.5551]
[1744714590563,10.8,132.4,132.37,17.38735807]
[1744714591065,10.8,132.4,132.38,9.83285807]
[1744714592147,10.8,132.4,132.39,9.83285807]
[1744714594571,10.8,132.4,132.39,17.38625807]
[1744714595066,10.8,132.4,132.39,9.83285807]
[1744714596376,10.8,132.4,132.39,17.38625807]
[1744714599369,10.8,132.4,132.38,26.0]
[1744714599572,10.8,132.4,132.38,35.83285807]
[1744714599969,10.8,132.4,132.38,26.0]
[1744714600167,10.8,132.4,132.36,17.38765807]
[1744714600476,10.8,132.4,132.36,43.38765807]
[1744714600664,18.353,132.4,132.36,35.83285807]
[1744714600863,9.83285807,132.39,132.34,17.38865807]
[1744714601579,9.83285807,132.36,132.32,7.5571]
[1744714601781,10.8,132.35,132.32,17.38995807]
[1744714602266,10.8,132.35,132.32,43.38995807]
[1744714602882,10.8,132.35,132.32,17.38995807]
[1744714603382,10.8,132.35,132.32,26.0]
[1744714603677,10.8,132.35,132.32,35.83285807]
[1744714603855,10.8,132.35,132.32,26.0]
[1744714604583,10.8,132.35,132.32,35.83285807]
[1744714605475,10.8,132.35,132.32,43.38995807]
[1744714605680,10.8,132.35,132.32,33.5571]
[1744714605874,10.8,132.35,132.32,43.38995807]
[1744714606181,10.8,132.35,132.33,9.83285807]
[1744714606374,28.18865807,132.35,132.32,26.0]
[1744714607255,18.3558,132.35,132.32,26.0]
[1744714610566,10.8,132.35,132.33,9.83285807]
[1744714610883,10.8,132.35,132.34,9.83285807]
[1744714612089,10.8,132.39,132.34,54.48250693]
[1744714612266,10.8,132.39,132.37,9.83285807]
[1744714614384,10.8,132.39,132.38,9.83285807]
[1744714615382,10.8,132.39,132.38,17.38685807]
[1744714616890,10.8,132.39,132.38,9.83285807]
[1744714619489,10.8,132.39,132.37,26.0]
[1744714619792,10.8,132.39,132.34,18.64964886]
[1744714619793,20.63285807,132.39,132.34,9.83285807]
[1744714619993,9.83285807,132.38,132.33,9.83285807]
[1744714620206,9.83285807,132.38,132.34,26.0]
[1744714620372,9.83285807,132.38,132.33,9.83285807]
[1744714620574,28.18635807,132.39,132.35,9.83285807]
[1744714620779,28.18635807,132.39,132.34,35.83285807]
[1744714621070,28.18635807,132.39,132.35,26.0]
[1744714621298,28.18635807,132.39,132.35,35.83285807]
[1744714621988,28.18635807,132.39,132.35,26.0]
[1744714623308,18.3535,132.39,132.35,35.83285807]
[1744714623688,10.8,132.39,132.36,9.83285807]
[1744714624376,7.5813,132.43,132.38,9.83285807]
[1744714624581,10.8,132.42,132.4,9.83285807]
[1744714624779,10.8,132.42,132.39,9.83285807]
[1744714624979,10.8,132.42,132.38,9.83285807]
[1744714625180,6.6565,132.38,132.33,26.0]
[1744714625418,20.63285807,132.37,132.33,26.0]
[1744714625592,20.63285807,132.37,132.34,26.0]
[1744714626209,91.43285807,132.36,132.31,9.83285807]
[1744714626394,9.83285807,132.35,132.31,26.0]
[1744714626707,91.43285807,132.36,132.31,9.83285807]
[1744714627310,7.5557,132.35,132.31,35.83285807]
[1744714627508,17.38855807,132.35,132.31,26.0]
[1744714627801,11.37475807,132.34,132.3,0.063]
[1744714628185,9.83285807,132.33,132.3,0.063]
[1744714628388,20.63285807,132.32,132.3,0.063]
[1744714628788,10.8,132.32,132.3,0.063]
[1744714629401,18.3579,132.32,132.3,0.063]
[1744714631297,24.3774,132.32,132.3,0.063]
[1744714631500,10.8,132.32,132.3,9.89585807]
[1744714631819,10.8,132.32,132.3,0.063]
[1744714633317,18.3575,132.32,132.3,0.063]
[1744714633497,28.19035807,132.32,132.3,0.063]
[1744714636024,117.73190693,132.31,132.3,0.063]
[1744714636206,38.315365,132.3,132.29,0.0001]
[1744714637205,38.315365,132.3,132.28,0.0001]
[1744714637429,28.48250693,132.29,132.28,0.0001]
[1744714637957,36.04160693,132.29,132.28,0.0001]
[1744714644951,7.5587,132.3,132.28,0.0001]
[1744714645535,10.8,132.3,132.29,9.83285807]
[1744714647049,10.8,132.34,132.29,17.39195807]
[1744714647237,10.8,132.34,132.33,9.83285807]
[1744714647432,0.03,132.35,132.33,28.48250693]
[1744714647646,0.03,132.35,132.34,9.83285807]
[1744714649031,0.03,132.35,132.33,9.83285807]
[1744714649649,0.03,132.35,132.32,35.83285807]
[1744714649837,0.03,132.35,132.31,9.83285807]
[1744714650040,10.8,132.34,132.31,9.83285807]
[1744714650356,10.8,132.34,132.3,35.83285807]
[1744714651151,7.5568,132.33,132.3,35.83285807]
[1744714651728,7.5568,132.33,132.3,9.83285807]
[1744714655161,7.5568,132.33,132.29,9.83285807]
[1744714655362,7.5568,132.33,132.3,9.83285807]
[1744714659263,10.8,132.34,132.31,9.83285807]
[1744714659469,10.8,132.34,132.29,18.64964886]
[1744714659470,10.8,132.34,132.33,9.83285807]
[1744714659852,10.8,132.34,132.32,9.83285807]
[1744714660555,18.3563,132.34,132.32,9.83285807]
[1744714661565,18.3563,132.34,132.31,9.83285807]
[1744714662568,28.18915807,132.34,132.3,35.83285807]
[1744714662740,18.3563,132.34,132.3,35.83285807]
[1744714664570,28.18915807,132.34,132.3,26.0]
[1744714664868,9.83285807,132.33,132.28,35.83295807]
[1744714665051,9.83285807,132.32,132.28,26.0001]
[1744714665251,9.83285807,132.31,132.28,26.0001]
[1744714665462,9.83285807,132.31,132.28,0.0001]
[1744714665849,9.83285807,132.3,132.28,0.0001]
[1744714666049,10.8,132.29,132.28,0.0001]
[1744714666472,10.8,132.29,132.28,9.83295807]
[1744714668566,10.78,132.33,132.28,9.83295807]
[1744714668772,10.78,132.33,132.31,9.83285807]
[1744714669279,10.78,132.33,132.3,9.83285807]
[1744714669582,18.3369,132.33,132.3,9.83285807]
[1744714669769,10.78,132.33,132.3,9.83285807]
[1744714670279,10.78,132.33,132.31,9.83285807]
[1744714670490,10.78,132.33,132.32,9.83285807]
[1744714671772,10.78,132.33,132.32,17.39025807]
[1744714673182,0.03,132.35,132.33,18.64964886]
[1744714675890,0.03,132.35,132.34,17.38905807]
[1744714676093,0.03,132.35,132.34,62.03870693]
[1744714676986,0.03,132.35,132.34,63.69490693]
[1744714677786,0.03,132.35,132.34,35.83285807]
[1744714677987,0.03,132.35,132.34,26.0]
[1744714680081,0.03,132.35,132.34,35.83285807]
[1744714680284,0.03,132.35,132.34,26.0]
[1744714681479,0.03,132.35,132.33,9.83285807]
[1744714681681,0.03,132.35,132.32,26.0]
[1744714682405,0.03,132.35,132.33,9.83285807]
[1744714682697,0.03,132.35,132.34,9.83285807]
[1744714683986,0.03,132.35,132.34,17.38905807]
[1744714684186,0.03,132.35,132.34,9.83285807]
[1744714684805,0.03,132.35,132.34,17.38905807]
[1744714685506,0.03,132.35,132.33,9.83285807]
[1744714687600,0.03,132.35,132.33,17.38955807]
[1744714687802,0.03,132.35,132.34,9.83285807]
[1744714688684,0.03,132.35,132.34,17.38905807]
[1744714691501,0.03,132.35,132.32,35.83285807]
[1744714692002,0.03,132.35,132.32,9.83285807]
[1744714692809,0.03,132.35,132.33,9.83285807]
[1744714694813,0.03,132.35,132.32,26.0]
[1744714695012,0.03,132.35,132.32,35.83285807]
[1744714695308,0.03,132.35,132.31,9.83285807]
[1744714697441,0.03,132.35,132.31,17.39065807]
[1744714697707,0.03,132.35,132.32,9.83285807]
[1744714700532,9.83285807,132.33,132.28,9.83295807]
[1744714700819,17.39025807,132.32,132.28,17.39235807]
[1744714701512,7.5574,132.32,132.28,9.83295807]
[1744714702018,10.78,132.31,132.28,0.0001]
[1744714702592,20.61285807,132.31,132.28,0.0001]
[1744714702792,28.17125807,132.31,132.28,0.0001]
[1744714703819,11.33445807,132.3,132.28,0.0001]
[1744714704205,1.5016,132.3,132.28,0.0001]
[1744714704922,1.528,132.34,132.29,35.83285807]
[1744714705103,1.528,132.34,132.32,9.83285807]
[1744714706225,1.528,132.34,132.31,9.83285807]
[1744714707709,1.528,132.34,132.31,17.39075807]
[1744714707909,1.528,132.34,132.32,9.83285807]
[1744714708110,10.81,132.35,132.32,9.83285807]
[1744714709531,10.81,132.35,132.32,17.39015807]
[1744714710725,10.81,132.35,132.32,9.83285807]
[1744714711133,10.81,132.35,132.34,9.83285807]
[1744714711505,10.81,132.35,132.34,17.38905807]
[1744714713143,10.81,132.35,132.31,7.558]
[1744714713318,18.3657,132.35,132.31,7.558]
[1744714713522,18.3657,132.35,132.32,9.83285807]
[1744714713940,28.19855807,132.35,132.3,9.83285807]
[1744714714542,28.19855807,132.35,132.31,9.83285807]
[1744714715041,9.83285807,132.34,132.3,9.83285807]
[1744714715245,36.15535807,132.35,132.3,9.83285807]
[1744714715742,26.3225,132.35,132.32,9.83285807]
[1744714718040,18.7668,132.35,132.32,9.83285807]
[1744714718225,12.3589,132.35,132.33,9.83285807]
[1744714718431,10.81,132.35,132.34,9.83285807]
[1744714718727,10.81,132.35,132.32,7.5573]
[1744714718931,10.81,132.35,132.32,35.83285807]
[1744714719246,10.81,132.35,132.34,9.83285807]
[1744714721946,10.81,132.35,132.33,9.83285807]
[1744714722130,18.3658,132.35,132.31,9.83285807]
[1744714723949,28.19865807,132.35,132.3,35.83285807]
[1744714724262,28.19865807,132.35,132.3,43.39135807]
[1744714724551,18.3658,132.35,132.31,9.83285807]
[1744714724849,18.3658,132.35,132.32,9.83285807]
[1744714725725,10.81,132.35,132.33,9.83285807]
[1744714727038,10.81,132.35,132.32,9.83285807]
[1744714727957,10.81,132.35,132.34,9.83285807]
[1744714729858,10.81,132.35,132.33,9.83285807]
[1744714731964,10.81,132.35,132.33,17.38965807]
[1744714732148,10.81,132.35,132.34,9.83285807]
[1744714733069,10.81,132.35,132.33,17.38965807]
[1744714733966,10.81,132.35,132.34,9.83285807]
[1744714734562,10.81,132.35,132.33,7.5568]
[1744714734563,10.81,132.35,132.33,17.38965807]
[1744714735574,10.81,132.35,132.32,9.83285807]
[1744714736870,10.81,132.35,132.32,17.38995807]
[1744714737456,10.81,132.35,132.33,9.83285807]
[1744714737664,10.81,132.35,132.32,7.5571]
[1744714737665,10.81,132.35,132.34,9.83285807]
[1744714738574,10.81,132.35,132.32,7.5571]
[1744714738575,10.81,132.35,132.33,9.83285807]
[1744714739146,10.81,132.35,132.33,17.38965807]
[1744714739568,10.81,132.35,132.33,7.5568]
[1744714739752,10.81,132.35,132.33,17.38965807]
[1744714740067,10.81,132.35,132.34,9.83285807]
[1744714740649,10.81,132.35,132.34,17.38905807]
[1744714740852,0.03,132.35,132.34,17.38905807]
[1744714741250,0.03,132.35,132.34,36.03870693]
[1744714741561,0.03,132.35,132.34,9.83285807]
[1744714741769,0.03,132.35,132.33,9.83285807]
[1744714742459,0.03,132.35,132.32,43.39005807]
[1744714742666,0.03,132.35,132.32,33.5572]
[1744714742864,0.03,132.35,132.33,9.83285807]
[1744714744176,0.03,132.35,132.32,35.83285807]
[1744714745271,0.03,132.35,132.32,43.39025807]
[1744714745774,0.03,132.35,132.33,9.83285807]
[1744714746185,0.03,132.35,132.32,43.39025807]
[1744714747147,0.03,132.35,132.32,26.0]
[1744714747478,0.03,132.35,132.32,35.83285807]
[1744714747775,0.03,132.35,132.32,26.0]
[1744714748577,0.03,132.35,132.3,9.83285807]
[1744714748763,0.03,132.35,132.3,35.83285807]
[1744714748961,0.03,132.35,132.33,9.83285807]
[1744714749284,0.03,132.35,132.34,9.83285807]
[1744714749774,0.03,132.35,132.34,17.38905807]
[1744714750573,0.03,132.35,132.34,9.83285807]
[1744714751181,0.03,132.35,132.34,17.38905807]
[1744714751572,0.03,132.35,132.34,36.03870693]
[1744714753378,0.03,132.35,132.34,9.83285807]
[1744714760092,0.03,132.35,132.34,17.38905807]
[1744714760886,0.03,132.35,132.34,36.03870693]
[1744714767087,0.03,132.35,132.34,17.38905807]
[1744714773175,0.03,132.35,132.34,36.03870693]
[1744714774291,0.03,132.35,132.34,17.38905807]
[1744714775998,0.03,132.35,132.33,26.0]
[1744714778087,0.03,132.35,132.32,9.83285807]
[1744714778283,7.7099,132.35,132.31,35.83285807]
[1744714778899,7.7099,132.35,132.31,43.39065807]
[1744714779075,7.7099,132.35,132.32,9.83285807]
[1744714779392,7.7099,132.35,132.31,33.5578]
[1744714779584,7.7099,132.35,132.32,9.83285807]
[1744714781400,0.03,132.35,132.34,9.83285807]
[1744714781791,0.03,132.35,132.34,17.38905807]
[1744714783883,0.03,132.35,132.31,63.54364886]
[1744714784094,0.03,132.35,132.32,17.39025807]
[1744714784297,0.03,132.35,132.31,43.39075807]
[1744714784696,0.03,132.35,132.33,9.83285807]
[1744714788004,0.03,132.35,132.34,9.83285807]
[1744714788896,0.03,132.35,132.33,17.38965807]
[1744714789309,0.03,132.35,132.34,9.83285807]
[1744714789777,0.03,132.35,132.32,17.39005807]
[1744714790694,0.03,132.35,132.31,26.0]
[1744714791002,0.03,132.35,132.31,43.39075807]
[1744714791788,0.03,132.35,132.31,35.83285807]
[1744714791982,9.83285807,132.34,132.31,26.0]
[1744714792703,17.38955807,132.34,132.31,26.0]
[1744714793405,7.586,132.35,132.31,43.39075807]
[1744714793591,7.586,132.35,132.32,9.83285807]
[1744714797199,7.586,132.35,132.32,6.30275905]
[1744714797607,7.586,132.35,132.31,39.86065905]
[1744714798605,7.586,132.35,132.31,32.30275905]
[1744714799284,7.586,132.35,132.32,6.30275905]
[1744714800114,0.03,132.35,132.33,6.30275905]
[1744714800321,0.03,132.35,132.34,6.30275905]
[1744714800806,0.03,132.35,132.34,58.50860791]
[1744714801800,0.03,132.35,132.34,39.85895905]
[1744714802108,0.03,132.35,132.34,26.0]
[1744714802290,0.03,132.35,132.32,32.30275905]
[1744714802900,0.03,132.35,132.31,6.30275905]
[1744714803206,0.03,132.35,132.32,9.84825557]
[1744714803704,0.03,132.35,132.34,35.84825557]
[1744714804517,0.03,132.35,132.34,43.40445557]
[1744714804720,0.03,132.35,132.34,35.84825557]
[1744714805624,0.03,132.35,132.34,43.40445557]
[1744714806425,0.03,132.35,132.34,62.05410443]
[1744714807505,0.03,132.39,132.38,28.49790443]
[1744714808018,0.03,132.39,132.38,9.84825557]
[1744714808620,0.03,132.39,132.38,28.49790443]
[1744714809329,0.03,132.4,132.38,28.49790443]
[1744714809330,0.03,132.4,132.39,33.5534]
[1744714809501,0.03,132.41,132.39,36.05130443]
[1744714809702,0.03,132.41,132.4,35.84825557]
[1744714810422,0.03,132.43,132.42,35.84825557]
[1744714810719,0.03,132.43,132.42,9.84825557]
[1744714811734,0.03,132.43,132.4,9.84825557]
[1744714811908,10.77,132.43,132.4,9.84825557]
[1744714812915,20.61825557,132.43,132.38,9.84825557]
[1744714813225,20.61825557,132.43,132.36,18.64964886]
[1744714813226,20.61825557,132.43,132.39,9.84825557]
[1744714813429,9.84825557,132.41,132.37,9.84825557]
[1744714813603,7.5528,132.4,132.36,9.84825557]
[1744714813808,7.5528,132.4,132.35,26.0]
[1744714814207,7.5528,132.4,132.37,9.84825557]
[1744714814527,15.2687,132.42,132.39,9.84825557]
[1744714814727,15.2687,132.42,132.38,9.84825557]
[1744714814929,9.84825557,132.41,132.37,35.84825557]
[1744714815103,9.84825557,132.41,132.37,9.84825557]
[1744714815608,7.5528,132.4,132.37,9.84825557]
[1744714816830,17.40105557,132.4,132.36,35.84825557]
[1744714817019,17.40105557,132.4,132.33,17.40485557]
[1744714817020,9.84825557,132.38,132.33,17.40485557]
[1744714817220,20.58825557,132.38,132.33,17.40485557]
[1744714817421,9.84825557,132.37,132.28,18.8991]
[1744714817623,7.5557,132.35,132.29,26.20874886]
[1744714817817,17.65675557,132.36,132.33,9.84825557]
[1744714817818,15.3639,132.36,132.33,9.84825557]
[1744714818011,10.74,132.38,132.34,9.84825557]
[1744714818329,10.74,132.38,132.31,26.0]
[1744714818330,10.74,132.38,132.36,9.84825557]
[1744714819634,10.74,132.38,132.37,9.84825557]
[1744714821031,18.91,132.42,132.38,26.0]
[1744714821246,18.91,132.42,132.4,9.84825557]
[1744714824328,12.3278,132.42,132.4,9.84825557]
[1744714824742,12.3278,132.42,132.38,33.5537]
[1744714825034,12.3278,132.42,132.4,9.84825557]
[1744714825844,12.3278,132.42,132.38,33.5537]
[1744714826029,19.8796,132.42,132.39,9.84825557]
[1744714826542,16.25065557,132.4,132.34,9.84825557]
[1744714826724,9.84825557,132.38,132.34,9.84825557]
[1744714826918,10.72,132.37,132.33,9.84825557]
[1744714827517,10.72,132.37,132.34,9.84825557]
[1744714828251,10.72,132.37,132.35,9.84825557]
[1744714828421,10.72,132.37,132.36,9.84825557]
[1744714829533,10.72,132.37,132.35,9.84825557]
[1744714830645,10.72,132.37,132.36,9.84825557]
[1744714831726,10.72,132.41,132.36,28.49790443]
[1744714831922,10.72,132.41,132.4,9.84825557]
[1744714832632,10.72,132.41,132.4,17.40105557]
[1744714833542,0.03,132.43,132.4,62.05070443]
[1744714833730,0.03,132.43,132.42,35.84825557]
[1744714834943,0.03,132.43,132.42,43.39995557]
[1744714835339,0.03,132.43,132.42,62.04960443]
[1744714835648,0.03,132.43,132.42,43.39995557]
[1744714836548,0.03,132.43,132.42,35.84825557]
[1744714837335,0.03,132.43,132.41,9.84825557]
[1744714837533,0.03,132.43,132.42,9.84825557]
[1744714841544,0.03,132.43,132.42,17.39995557]
[1744714843548,0.03,132.43,132.42,45.89786]
[1744714843869,0.03,132.44,132.43,19.69651114]
[1744714844860,0.03,132.44,132.43,27.24761114]
[1744714845656,0.03,132.44,132.43,53.24761114]
[1744714846741,0.03,132.45,132.43,71.89726]
[1744714846961,0.03,132.45,132.44,19.69651114]
[1744714848850,0.03,132.45,132.44,27.24701114]
[1744714849053,0.03,132.45,132.44,7.5505]
[1744714849242,0.03,132.45,132.44,9.84825557]
[1744714850164,0.03,132.45,132.43,26.0]
[1744714850343,0.03,132.45,132.43,35.84825557]
[1744714850970,15.97905557,132.45,132.37,30.34775557]
[1744714851135,6.1308,132.45,132.38,7.554]
[1744714851336,9.84825557,132.42,132.38,17.40225557]
[1744714851639,10.7,132.41,132.38,9.84825557]
[1744714852047,10.7,132.41,132.37,33.5543]
[1744714852246,10.7,132.41,132.38,9.84825557]
[1744714853051,10.7,132.41,132.38,17.40215557]
[1744714855886,10.7,132.41,132.39,9.84825557]
[1744714857454,10.7,132.41,132.38,7.5539]
[1744714857664,10.7,132.41,132.39,9.84825557]
[1744714857850,10.7,132.41,132.4,9.84825557]
[1744714860275,10.7,132.41,132.39,9.84825557]
[1744714860467,29.72605557,132.41,132.33,7.5568]
[1744714860773,9.84825557,132.37,132.32,7.6201]
[1744714860962,9.84825557,132.37,132.32,17.46835557]
[1744714861284,15.7551054,132.37,132.32,49.3752054]
[1744714861461,18.2751,132.36,132.32,49.3752054]
[1744714861650,18.2751,132.36,132.32,23.3752054]
[1744714862163,18.2751,132.36,132.32,49.3752054]
[1744714862578,18.2751,132.36,132.32,15.8181054]